[Event "European Online Club-ch-E 2021"]
[Site "Online"]
[Date "2021.03.27"]
[Round "3.16"]
[White "Zisiadis, Dimitrios"]
[Black "Arman, Deniz"]
[Result "0-1"]
[ECO "A33"]
[WhiteElo "2042"]
[BlackElo "2336"]
[Annotator "NA"]
[PlyCount "104"]
[EventDate "2021.03.27"]
[EventType "team-tourn"]
[EventCountry "NET"]
[SourceTitle "playchess.com"]
[Source "ChessBase"]
[SourceQuality "1"]
[TimeControl "900+5"]

1. d4 {[%emt 0:00:00]} Nf6 {[%emt 0:00:17]} 2. c4 {[%emt 0:00:05]} c5 {[%emt 0:00:22]} 3. Nf3 {[%emt 0:00:07]} cxd4 {[%emt 0:00:05]} 4. Nxd4 {[%emt 0:00:03]} Nc6 {[%emt 0:00:14]} 5. Nc3 {[%emt 0:00:15]} Qb6 {[%emt 0:00:02]} 6. Nb3 {[%emt 0:00:19]} e6 {[%emt 0:00:05]} 7. g3 {[%emt 0:01:15]} Ne5 {[%emt 0:02:29]} 8. Be3 {[%emt 0:00:55]} Qc6 {[%emt 0:00:32]} 9. Rg1 {[%emt 0:01:45]} Nxc4 {[%emt 0:01:00]} 10. Bg2 {[%emt 0:00:59]} Nxe3 {[%emt 0:00:27]} 11. fxe3 {[%emt 0:00:17]} d5 {[%emt 0:00:57]} 12. Qd4 {[%emt 0:00:27]} Qb6 {[%emt 0:02:09]} 13. Qd3 {[%emt 0:00:24]} Bd7 {[%emt 0:00:10]} 14. O-O-O {[%emt 0:00:30]} Bb4 {[%emt 0:00:45]} 15. Kb1 {[%emt 0:00:21]} O-O {[%emt 0:00:23]} 16. Bf3 {[%emt 0:02:49]} Rac8 {[%emt 0:00:29]} 17. Rc1 {[%emt 0:00:10]} a5 {[%emt 0:02:48]} 18. g4 {[%emt 0:00:37]} a4 {[%emt 0:01:42]} 19. g5 {[%emt 0:00:53]} Bxc3 {[%emt 0:00:07]} 20. Rxc3 {[%emt 0:00:53]} Rxc3 {[%emt 0:00:04]} 21. Qxc3 {[%emt 0:02:27]} Rc8 {[%emt 0:00:04]} 22. Qd4 {[%emt 0:00:16]} Qxd4 {[%emt 0:00:04]} 23. exd4 {[%emt 0:00:24]} Ne8 {[%emt 0:00:41]} 24. Nc5 {[%emt 0:00:11]} Bc6 {[%emt 0:00:02]} 25. h4 {[%emt 0:00:25]} Nd6 {[%emt 0:00:09]} 26. Bg4 {[%emt 0:00:04]} Kf8 {[%emt 0:00:16]} 27. Rf1 {[%emt 0:00:02]} Ke7 {[%emt 0:00:03]} 28. h5 {[%emt 0:00:08]} Bb5 {[%emt 0:00:15]} 29. g6 {[%emt 0:00:11]} hxg6 {[%emt 0:00:02]} 30. hxg6 {[%emt 0:00:03]} f5 {[%emt 0:00:02]} 31. Bf3 {[%emt 0:00:03]} b6 {[%emt 0:00:02]} 32. Nd3 {[%emt 0:00:05]} Bxd3+ {[%emt 0:00:01]} 33. exd3 {[%emt 0:00:01]} Nb5 {[%emt 0:00:01]} 34. Re1 {[%emt 0:00:07]} Kf6 {[%emt 0:00:03]} 35. Bd1 {[%emt 0:00:12]} a3 {[%emt 0:00:04]} 36. Ba4 {[%emt 0:00:05]} Nxd4 {[%emt 0:00:01]} 37. bxa3 {[%emt 0:00:05]} b5 {[%emt 0:00:01]} 38. Bd1 {[%emt 0:00:04]} Kxg6 {[%emt 0:00:05]} 39. Kb2 {[%emt 0:00:02]} Kf6 {[%emt 0:00:03]} 40. a4 {[%emt 0:00:06]} bxa4 {[%emt 0:00:04]} 41. Bxa4 {[%emt 0:00:01]} g5 {[%emt 0:00:02]} 42. Rh1 {[%emt 0:00:09]} g4 {[%emt 0:00:03]} 43. Rh6+ {[%emt 0:00:09]} Kg5 {[%emt 0:00:02]} 44. Rh7 {[%emt 0:00:01]} Kg6 {[%emt 0:00:11]} 45. Rh1 {[%emt 0:00:11]} f4 {[%emt 0:00:03]} 46. Bd7 {[%emt 0:00:02]} Rc7 {[%emt 0:00:03]} 47. Ba4 {[%emt 0:00:02]} f3 {[%emt 0:00:03]} 48. Bd1 {[%emt 0:00:02]} Rh7 {[%emt 0:00:10]} 49. Rg1 {[%emt 0:00:03]} Kf5 {[%emt 0:00:04]} 50. Kc3 {[%emt 0:00:08]} e5 {[%emt 0:00:04]} 51. a4 {[%emt 0:00:02]} Kf4 {[%emt 0:00:23]} 52. a5 {[%emt 0:00:04]} g3 {[%emt 0:00:03]} 0-1

[Event "European Online Club-ch-E 2021"]
[Site "Online"]
[Date "2021.03.27"]
[Round "3.17"]
[White "Sirosh, Ilja"]
[Black "Dedebas, Emre Emin"]
[Result "0-1"]
[ECO "D20"]
[WhiteElo "2400"]
[BlackElo "2335"]
[Annotator "NA"]
[PlyCount "100"]
[EventDate "2021.03.27"]
[EventType "team-tourn"]
[EventCountry "NET"]
[SourceTitle "playchess.com"]
[Source "ChessBase"]
[SourceQuality "1"]
[TimeControl "900+5"]

1. e4 {[%emt 0:00:00]} e6 {[%emt 0:00:09]} 2. d4 {[%emt 0:00:05]} d5 {[%emt 0:00:02]} 3. exd5 {[%emt 0:00:03]} exd5 {[%emt 0:00:03]} 4. Nf3 {[%emt 0:00:01]} Bd6 {[%emt 0:00:02]} 5. c4 {[%emt 0:00:04]} dxc4 {[%emt 0:00:01]} 6. Bxc4 {[%emt 0:00:04]} Nf6 {[%emt 0:00:04]} 7. O-O {[%emt 0:00:10]} O-O {[%emt 0:00:04]} 8. Nc3 {[%emt 0:00:01]} Nc6 {[%emt 0:00:05]} 9. Bg5 {[%emt 0:02:39]} h6 {[%emt 0:00:03]} 10. Bh4 {[%emt 0:00:14]} Bg4 {[%emt 0:00:09]} 11. h3 {[%emt 0:06:07]} Bxf3 {[%emt 0:00:13]} 12. Qxf3 {[%emt 0:00:00]} Nxd4 {[%emt 0:00:04]} 13. Qxb7 {[%emt 0:01:44]} Nf5 {[%emt 0:00:05]} 14. Bxf6 {[%emt 0:00:08]} Qxf6 {[%emt 0:00:03]} 15. Qf3 {[%emt 0:00:49]} Qe5 {[%emt 0:09:28]} 16. g3 {[%emt 0:00:04]} Nd4 {[%emt 0:02:21]} 17. Qd5 {[%emt 0:01:43]} Rab8 {[%emt 0:00:48]} 18. b3 {[%emt 0:00:31]} Qxd5 {[%emt 0:00:50]} 19. Nxd5 {[%emt 0:00:25]} Nf3+ {[%emt 0:00:39]} 20. Kg2 {[%emt 0:00:02]} Nd2 {[%emt 0:00:03]} 21. Rfc1 {[%emt 0:00:08]} Be5 {[%emt 0:00:08]} 22. Rab1 {[%emt 0:01:39]} Nxb1 {[%emt 0:00:20]} 23. Rxb1 {[%emt 0:00:00]} Rfe8 {[%emt 0:00:09]} 24. a4 {[%emt 0:00:02]} Bd6 {[%emt 0:00:05]} 25. Rd1 {[%emt 0:00:03]} Kf8 {[%emt 0:00:09]} 26. Rd3 {[%emt 0:00:07]} c6 {[%emt 0:00:37]} 27. Ne3 {[%emt 0:00:02]} Bc5 {[%emt 0:00:02]} 28. Nf5 {[%emt 0:00:14]} Red8 {[%emt 0:00:15]} 29. Rf3 {[%emt 0:00:03]} Rb7 {[%emt 0:00:01]} 30. a5 {[%emt 0:00:06]} Rd2 {[%emt 0:00:03]} 31. a6 {[%emt 0:00:02]} Rc7 {[%emt 0:00:02]} 32. g4 {[%emt 0:00:05]} Rcd7 {[%emt 0:00:24]} 33. Ng3 {[%emt 0:00:02]} Bb6 {[%emt 0:00:03]} 34. Ne4 {[%emt 0:00:03]} R2d4 {[%emt 0:00:02]} 35. Ng3 {[%emt 0:00:01]} g6 {[%emt 0:00:01]} 36. Rc3 {[%emt 0:00:08]} Kg7 {[%emt 0:00:03]} 37. Rf3 {[%emt 0:00:02]} Rd2 {[%emt 0:00:03]} 38. Nf1 {[%emt 0:00:04]} Rb2 {[%emt 0:00:05]} 39. Ng3 {[%emt 0:00:02]} Re7 {[%emt 0:00:11]} 40. h4 {[%emt 0:00:03]} f6 {[%emt 0:00:04]} 41. h5 {[%emt 0:00:02]} Re3 {[%emt 0:00:02]} 42. hxg6 {[%emt 0:00:27]} Rxf3 {[%emt 0:00:07]} 43. Kxf3 {[%emt 0:00:00]} Rxf2+ {[%emt 0:00:03]} 44. Ke4 {[%emt 0:00:01]} Kxg6 {[%emt 0:00:02]} 45. Nf5 {[%emt 0:00:03]} Kg5 {[%emt 0:00:11]} 46. Ne7 {[%emt 0:00:18]} Kxg4 {[%emt 0:00:10]} 47. Nxc6 {[%emt 0:00:06]} h5 {[%emt 0:00:02]} 48. Be6+ {[%emt 0:00:02]} Kg5 {[%emt 0:00:08]} 49. Bc8 {[%emt 0:00:07]} h4 {[%emt 0:00:02]} 50. Nb4 {[%emt 0:00:03]} Rf4+ {[%emt 0:00:04]} 0-1

[Event "European Online Club-ch-E 2021"]
[Site "Online"]
[Date "2021.03.27"]
[Round "3.18"]
[White "Angun, Batu"]
[Black "Chukavin, Kirill"]
[Result "1-0"]
[ECO "D46"]
[WhiteElo "2326"]
[BlackElo "2384"]
[Annotator "NA"]
[PlyCount "77"]
[EventDate "2021.03.27"]
[EventType "team-tourn"]
[EventCountry "NET"]
[SourceTitle "playchess.com"]
[Source "ChessBase"]
[SourceQuality "1"]
[TimeControl "900+5"]

1. d4 {[%emt 0:00:00]} Nf6 {[%emt 0:00:04]} 2. c4 {[%emt 0:00:09]} e6 {[%emt 0:00:02]} 3. Nf3 {[%emt 0:00:04]} d5 {[%emt 0:00:04]} 4. Nc3 {[%emt 0:00:05]} c6 {[%emt 0:00:22]} 5. e3 {[%emt 0:00:04]} Nbd7 {[%emt 0:00:03]} 6. Qc2 {[%emt 0:00:03]} Bd6 {[%emt 0:00:03]} 7. Bd3 {[%emt 0:00:03]} O-O {[%emt 0:00:11]} 8. O-O {[%emt 0:00:03]} dxc4 {[%emt 0:00:01]} 9. Bxc4 {[%emt 0:00:01]} b5 {[%emt 0:00:03]} 10. Be2 {[%emt 0:00:02]} Bb7 {[%emt 0:00:02]} 11. Rd1 {[%emt 0:00:10]} Qe7 {[%emt 0:00:06]} 12. e4 {[%emt 0:00:44]} e5 {[%emt 0:00:08]} 13. dxe5 {[%emt 0:00:05]} Nxe5 {[%emt 0:00:02]} 14. Nd4 {[%emt 0:00:02]} Bc5 {[%emt 0:04:56]} 15. Be3 {[%emt 0:02:53]} Neg4 {[%emt 0:00:30]} 16. Nf5 {[%emt 0:00:55]} Qe5 {[%emt 0:00:20]} 17. Bxg4 {[%emt 0:00:13]} Nxg4 {[%emt 0:00:12]} 18. Bxc5 {[%emt 0:01:19]} Qxc5 {[%emt 0:00:04]} 19. Qd2 {[%emt 0:02:06]} Bc8 {[%emt 0:01:34]} 20. Qd4 {[%emt 0:01:02]} Qxd4 {[%emt 0:02:31]} 21. Nxd4 {[%emt 0:00:07]} Re8 {[%emt 0:03:06]} 22. Nxc6 {[%emt 0:01:29]} Bb7 {[%emt 0:00:04]} 23. Rd6 {[%emt 0:01:50]} a6 {[%emt 0:01:45]} 24. Na5 {[%emt 0:00:24]} b4 {[%emt 0:00:31]} 25. Na4 {[%emt 0:00:20]} Bxe4 {[%emt 0:00:16]} 26. f3 {[%emt 0:00:18]} Bc2 {[%emt 0:00:02]} 27. Nb6 {[%emt 0:00:02]} Ne5 {[%emt 0:00:05]} 28. Nxa8 {[%emt 0:00:03]} Rxa8 {[%emt 0:00:02]} 29. Re1 {[%emt 0:00:03]} f6 {[%emt 0:00:02]} 30. f4 {[%emt 0:00:04]} Nd3 {[%emt 0:00:14]} 31. Re7 {[%emt 0:00:05]} Nxf4 {[%emt 0:00:02]} 32. Rdd7 {[%emt 0:00:06]} Bf5 {[%emt 0:00:08]} 33. Rb7 {[%emt 0:00:55]} Rc8 {[%emt 0:00:04]} 34. Rbc7 {[%emt 0:00:05]} Rd8 {[%emt 0:00:02]} 35. Re1 {[%emt 0:00:07]} h5 {[%emt 0:00:06]} 36. Nc6 {[%emt 0:00:03]} Rd2 {[%emt 0:00:08]} 37. Ne7+ {[%emt 0:00:03]} Kh8 {[%emt 0:00:02]} 38. Nxf5 {[%emt 0:00:01]} Rxg2+ {[%emt 0:00:03]} 39. Kh1 {[%emt 0:00:02]} 1-0

[Event "European Online Club-ch-E 2021"]
[Site "Online"]
[Date "2021.03.27"]
[Round "3.19"]
[White "Kukk, Sander"]
[Black "Tarlabasi, Emirhan"]
[Result "1/2-1/2"]
[ECO "D05"]
[WhiteElo "2230"]
[BlackElo "2301"]
[Annotator "NA"]
[PlyCount "94"]
[EventDate "2021.03.27"]
[EventType "team-tourn"]
[EventCountry "NET"]
[SourceTitle "playchess.com"]
[Source "ChessBase"]
[SourceQuality "1"]
[TimeControl "900+5"]

1. b3 {[%emt 0:00:00]} d5 {[%emt 0:00:07]} 2. e3 {[%emt 0:00:04]} c5 {[%emt 0:00:17]} 3. Bb2 {[%emt 0:00:02]} Nc6 {[%emt 0:00:02]} 4. Nf3 {[%emt 0:00:09]} Nf6 {[%emt 0:00:07]} 5. d4 {[%emt 0:00:07]} e6 {[%emt 0:00:47]} 6. a3 {[%emt 0:00:12]} b6 {[%emt 0:00:18]} 7. Bd3 {[%emt 0:00:02]} Bb7 {[%emt 0:00:07]} 8. Nbd2 {[%emt 0:00:01]} Be7 {[%emt 0:00:17]} 9. O-O {[%emt 0:00:02]} O-O {[%emt 0:00:06]} 10. Qe2 {[%emt 0:00:01]} Rc8 {[%emt 0:00:08]} 11. Ne5 {[%emt 0:00:02]} Nd7 {[%emt 0:03:38]} 12. f4 {[%emt 0:00:10]} f5 {[%emt 0:01:08]} 13. c4 {[%emt 0:02:28]} Nf6 {[%emt 0:01:56]} 14. cxd5 {[%emt 0:00:46]} Nxd5 {[%emt 0:00:22]} 15. Ndf3 {[%emt 0:00:06]} cxd4 {[%emt 0:01:21]} 16. Nxc6 {[%emt 0:00:35]} Rxc6 {[%emt 0:01:40]} 17. Nxd4 {[%emt 0:00:07]} Rd6 {[%emt 0:00:06]} 18. Bc4 {[%emt 0:00:43]} Bf6 {[%emt 0:01:28]} 19. Rad1 {[%emt 0:00:25]} Kh8 {[%emt 0:00:21]} 20. Nb5 {[%emt 0:02:55]} Rd7 {[%emt 0:00:11]} 21. Bxf6 {[%emt 0:00:15]} Qxf6 {[%emt 0:00:32]} 22. Bxd5 {[%emt 0:01:41]} Bxd5 {[%emt 0:00:14]} 23. Nd4 {[%emt 0:00:20]} h6 {[%emt 0:00:43]} 24. Nf3 {[%emt 0:00:15]} Rc7 {[%emt 0:00:13]} 25. Rd3 {[%emt 0:00:43]} Rfc8 {[%emt 0:00:07]} 26. Nd4 {[%emt 0:00:48]} Be4 {[%emt 0:00:36]} 27. Rd2 {[%emt 0:00:04]} Rc3 {[%emt 0:00:09]} 28. Rfd1 {[%emt 0:00:33]} Kh7 {[%emt 0:00:04]} 29. Qf2 {[%emt 0:00:34]} e5 {[%emt 0:00:07]} 30. fxe5 {[%emt 0:00:03]} Qxe5 {[%emt 0:00:02]} 31. Qf4 {[%emt 0:00:01]} Qxf4 {[%emt 0:00:04]} 32. exf4 {[%emt 0:00:00]} a6 {[%emt 0:00:04]} 33. a4 {[%emt 0:00:20]} Rc1 {[%emt 0:00:15]} 34. Rxc1 {[%emt 0:00:10]} Rxc1+ {[%emt 0:00:01]} 35. Kf2 {[%emt 0:00:01]} Rc3 {[%emt 0:00:02]} 36. g3 {[%emt 0:00:21]} g5 {[%emt 0:00:08]} 37. Ne6 {[%emt 0:00:13]} gxf4 {[%emt 0:00:06]} 38. Rd7+ {[%emt 0:00:09]} Kg8 {[%emt 0:00:06]} 39. Nxf4 {[%emt 0:00:05]} Rxb3 {[%emt 0:00:04]} 40. Nh5 {[%emt 0:00:01]} Kf8 {[%emt 0:00:03]} 41. Nf6 {[%emt 0:00:02]} Rb4 {[%emt 0:00:10]} 42. Ke3 {[%emt 0:01:04]} Rxa4 {[%emt 0:00:04]} 43. h4 {[%emt 0:00:01]} Rc4 {[%emt 0:00:02]} 44. Nh7+ {[%emt 0:01:25]} Ke8 {[%emt 0:00:05]} 45. Nf6+ {[%emt 0:00:01]} Kf8 {[%emt 0:00:01]} 46. Nh7+ {[%emt 0:00:08]} Ke8 {[%emt 0:00:03]} 47. Nf6+ {[%emt 0:00:01]} Kf8 {[%emt 0:00:01]} 1/2-1/2

[Event "European Online Club-ch-E 2021"]
[Site "Online"]
[Date "2021.03.27"]
[Round "3.20"]
[White "Dolgun, Can"]
[Black "Valner, Uku"]
[Result "0-1"]
[ECO "C17"]
[WhiteElo "2133"]
[BlackElo "2296"]
[Annotator "NA"]
[PlyCount "74"]
[EventDate "2021.03.27"]
[EventType "team-tourn"]
[EventCountry "NET"]
[SourceTitle "playchess.com"]
[Source "ChessBase"]
[SourceQuality "1"]
[TimeControl "900+5"]

1. e4 {[%emt 0:00:00]} e6 {[%emt 0:00:03]} 2. d4 {[%emt 0:00:02]} d5 {[%emt 0:00:02]} 3. Nc3 {[%emt 0:00:03]} Bb4 {[%emt 0:00:02]} 4. e5 {[%emt 0:00:02]} c5 {[%emt 0:00:03]} 5. Bd2 {[%emt 0:00:25]} Ne7 {[%emt 0:00:35]} 6. Nb5 {[%emt 0:00:18]} Bxd2+ {[%emt 0:00:04]} 7. Qxd2 {[%emt 0:00:03]} O-O {[%emt 0:00:03]} 8. c3 {[%emt 0:00:15]} b6 {[%emt 0:00:59]} 9. f4 {[%emt 0:00:20]} Ba6 {[%emt 0:00:22]} 10. Nf3 {[%emt 0:00:41]} Nbc6 {[%emt 0:00:26]} 11. a4 {[%emt 0:00:29]} cxd4 {[%emt 0:00:53]} 12. cxd4 {[%emt 0:01:01]} Na5 {[%emt 0:00:20]} 13. Rd1 {[%emt 0:00:45]} Nc4 {[%emt 0:00:07]} 14. Qf2 {[%emt 0:00:27]} Nf5 {[%emt 0:01:28]} 15. Bd3 {[%emt 0:00:54]} Bxb5 {[%emt 0:03:24]} 16. axb5 {[%emt 0:00:08]} Rc8 {[%emt 0:00:07]} 17. Ra1 {[%emt 0:02:40]} Qe7 {[%emt 0:00:25]} 18. O-O {[%emt 0:00:26]} h6 {[%emt 0:00:31]} 19. b3 {[%emt 0:01:08]} Nce3 {[%emt 0:01:27]} 20. Bxf5 {[%emt 0:00:16]} Nxf1 {[%emt 0:00:43]} 21. Bd3 {[%emt 0:00:34]} Nxh2 {[%emt 0:00:32]} 22. Kxh2 {[%emt 0:00:15]} Rc3 {[%emt 0:00:05]} 23. Bf1 {[%emt 0:00:20]} Rfc8 {[%emt 0:00:45]} 24. Ra2 {[%emt 0:00:58]} Rxb3 {[%emt 0:00:26]} 25. Rc2 {[%emt 0:00:05]} Rbc3 {[%emt 0:00:29]} 26. Rxc3 {[%emt 0:00:05]} Rxc3 {[%emt 0:00:03]} 27. Qb2 {[%emt 0:00:32]} Qc7 {[%emt 0:00:28]} 28. Qb4 {[%emt 0:00:25]} g6 {[%emt 0:00:32]} 29. Qd6 {[%emt 0:00:18]} Qc8 {[%emt 0:00:15]} 30. Qb4 {[%emt 0:02:13]} Kg7 {[%emt 0:00:21]} 31. Kg3 {[%emt 0:00:12]} Rc1 {[%emt 0:00:55]} 32. Bd3 {[%emt 0:00:02]} Rd1 {[%emt 0:00:05]} 33. Qb3 {[%emt 0:00:10]} Rc1 {[%emt 0:00:19]} 34. Qb4 {[%emt 0:00:38]} Ra1 {[%emt 0:00:10]} 35. Qb2 {[%emt 0:00:28]} Rc1 {[%emt 0:00:13]} 36. Nd2 {[%emt 0:00:04]} Qc3 {[%emt 0:00:09]} 37. Nf3 {[%emt 0:00:18]} Qxb2 {[%emt 0:00:02]} 0-1

[Event "European Online Club-ch-E 2021"]
[Site "Online"]
[Date "2021.03.27"]
[Round "4.1"]
[White "Coursaget, Nicolas"]
[Black "Angun, Batu"]
[Result "0-1"]
[ECO "D85"]
[WhiteElo "2192"]
[BlackElo "2326"]
[Annotator "NA"]
[PlyCount "66"]
[EventDate "2021.03.27"]
[EventType "team-tourn"]
[EventCountry "NET"]
[SourceTitle "playchess.com"]
[Source "ChessBase"]
[SourceQuality "1"]
[TimeControl "900+5"]

1. d4 {[%emt 0:02:14]} Nf6 {[%emt 0:00:08]} 2. Nf3 {[%emt 0:00:02]} g6 {[%emt 0:00:05]} 3. c4 {[%emt 0:00:02]} Bg7 {[%emt 0:00:05]} 4. Nc3 {[%emt 0:00:03]} d5 {[%emt 0:00:02]} 5. cxd5 {[%emt 0:00:03]} Nxd5 {[%emt 0:00:02]} 6. e4 {[%emt 0:00:01]} Nxc3 {[%emt 0:00:02]} 7. bxc3 {[%emt 0:00:02]} c5 {[%emt 0:00:02]} 8. Be3 {[%emt 0:00:03]} O-O {[%emt 0:00:04]} 9. Rb1 {[%emt 0:00:02]} Qa5 {[%emt 0:00:26]} 10. Qd2 {[%emt 0:00:02]} b6 {[%emt 0:00:32]} 11. Bb5 {[%emt 0:00:10]} Bb7 {[%emt 0:00:15]} 12. e5 {[%emt 0:00:13]} Rd8 {[%emt 0:00:31]} 13. O-O {[%emt 0:00:33]} Bxf3 {[%emt 0:00:41]} 14. gxf3 {[%emt 0:00:03]} Bxe5 {[%emt 0:01:20]} 15. Qe2 {[%emt 0:00:07]} Bf6 {[%emt 0:02:16]} 16. dxc5 {[%emt 0:00:04]} a6 {[%emt 0:00:21]} 17. Bd3 {[%emt 0:00:46]} bxc5 {[%emt 0:00:06]} 18. Be4 {[%emt 0:00:04]} Ra7 {[%emt 0:00:05]} 19. c4 {[%emt 0:00:14]} Qc7 {[%emt 0:01:56]} 20. Rfd1 {[%emt 0:00:12]} Bd4 {[%emt 0:00:11]} 21. f4 {[%emt 0:00:28]} Nc6 {[%emt 0:00:19]} 22. Qg4 {[%emt 0:00:25]} e6 {[%emt 0:00:30]} 23. f5 {[%emt 0:00:16]} exf5 {[%emt 0:00:12]} 24. Bxf5 {[%emt 0:00:03]} Bxe3 {[%emt 0:00:21]} 25. fxe3 {[%emt 0:00:05]} Qe5 {[%emt 0:00:33]} 26. Rxd8+ {[%emt 0:01:13]} Nxd8 {[%emt 0:00:04]} 27. Be4 {[%emt 0:00:01]} Re7 {[%emt 0:00:36]} 28. Bf3 {[%emt 0:00:29]} Qxe3+ {[%emt 0:00:05]} 29. Kg2 {[%emt 0:00:02]} Ne6 {[%emt 0:00:16]} 30. Qh4 {[%emt 0:00:26]} Nf4+ {[%emt 0:01:19]} 31. Kg3 {[%emt 0:00:09]} Ne2+ {[%emt 0:00:04]} 32. Kg2 {[%emt 0:00:05]} Re5 {[%emt 0:00:09]} 33. Qf6 {[%emt 0:00:37]} Nf4+ {[%emt 0:00:28]} 0-1

[Event "European Online Club-ch-E 2021"]
[Site "Online"]
[Date "2021.03.27"]
[Round "4.2"]
[White "Ozenir, Ekin Baris"]
[Black "Barbini, Denis"]
[Result "1-0"]
[ECO "E01"]
[WhiteElo "2309"]
[BlackElo "2035"]
[Annotator "NA"]
[PlyCount "65"]
[EventDate "2021.03.27"]
[EventType "team-tourn"]
[EventCountry "NET"]
[SourceTitle "playchess.com"]
[Source "ChessBase"]
[SourceQuality "1"]
[TimeControl "900+5"]

1. d4 {[%emt 0:00:00]} d5 {[%emt 0:00:03]} 2. c4 {[%emt 0:00:04]} c6 {[%emt 0:00:02]} 3. Nf3 {[%emt 0:00:03]} Nf6 {[%emt 0:00:04]} 4. Qc2 {[%emt 0:00:33]} e6 {[%emt 0:00:22]} 5. Nbd2 {[%emt 0:00:05]} Nbd7 {[%emt 0:00:03]} 6. g3 {[%emt 0:00:02]} Bd6 {[%emt 0:00:02]} 7. Bg2 {[%emt 0:00:02]} O-O {[%emt 0:00:02]} 8. O-O {[%emt 0:00:01]} Re8 {[%emt 0:00:21]} 9. b3 {[%emt 0:01:06]} dxc4 {[%emt 0:01:21]} 10. Nxc4 {[%emt 0:00:07]} Bf8 {[%emt 0:00:34]} 11. Bb2 {[%emt 0:00:06]} c5 {[%emt 0:00:53]} 12. Rad1 {[%emt 0:00:08]} Qc7 {[%emt 0:00:25]} 13. Nfe5 {[%emt 0:01:47]} cxd4 {[%emt 0:00:17]} 14. Bxd4 {[%emt 0:00:09]} a6 {[%emt 0:02:19]} 15. Qb2 {[%emt 0:00:31]} Nd5 {[%emt 0:01:43]} 16. Rc1 {[%emt 0:00:45]} Qd8 {[%emt 0:00:42]} 17. Rfd1 {[%emt 0:00:20]} b5 {[%emt 0:00:28]} 18. Ne3 {[%emt 0:00:58]} Bb7 {[%emt 0:01:33]} 19. Nxd5 {[%emt 0:00:09]} exd5 {[%emt 0:00:13]} 20. Nc6 {[%emt 0:00:29]} Bxc6 {[%emt 0:01:19]} 21. Rxc6 {[%emt 0:00:06]} Qg5 {[%emt 0:00:38]} 22. e3 {[%emt 0:00:54]} Ne5 {[%emt 0:01:07]} 23. Bxe5 {[%emt 0:00:53]} Qxe5 {[%emt 0:00:03]} 24. Qxe5 {[%emt 0:00:06]} Rxe5 {[%emt 0:00:02]} 25. Rxd5 {[%emt 0:00:01]} Rxd5 {[%emt 0:00:15]} 26. Bxd5 {[%emt 0:00:03]} Rd8 {[%emt 0:00:02]} 27. e4 {[%emt 0:00:02]} Rd6 {[%emt 0:00:19]} 28. Rc7 {[%emt 0:00:10]} Rf6 {[%emt 0:00:16]} 29. e5 {[%emt 0:00:11]} Rf5 {[%emt 0:00:06]} 30. f4 {[%emt 0:00:04]} g6 {[%emt 0:00:58]} 31. Bf3 {[%emt 0:00:08]} Bb4 {[%emt 0:00:53]} 32. Bg4 {[%emt 0:00:06]} Ba5 {[%emt 0:00:01]} 33. Rc8+ {[%emt 0:00:02]} 1-0

[Event "European Online Club-ch-E 2021"]
[Site "Online"]
[Date "2021.03.27"]
[Round "4.3"]
[White "Lejeune, Gael"]
[Black "Tarlabasi, Emirhan"]
[Result "0-1"]
[ECO "C01"]
[WhiteElo "2070"]
[BlackElo "2301"]
[Annotator "NA"]
[PlyCount "98"]
[EventDate "2021.03.27"]
[EventType "team-tourn"]
[EventCountry "NET"]
[SourceTitle "playchess.com"]
[Source "ChessBase"]
[SourceQuality "1"]
[TimeControl "900+5"]

1. d4 {[%emt 0:00:00]} d5 {[%emt 0:00:04]} 2. Nc3 {[%emt 0:00:03]} e6 {[%emt 0:00:05]} 3. e4 {[%emt 0:00:03]} Bb4 {[%emt 0:00:04]} 4. exd5 {[%emt 0:00:03]} exd5 {[%emt 0:00:03]} 5. Bd3 {[%emt 0:00:03]} Nf6 {[%emt 0:00:05]} 6. Nge2 {[%emt 0:00:03]} O-O {[%emt 0:00:04]} 7. Bg5 {[%emt 0:00:05]} c5 {[%emt 0:01:38]} 8. dxc5 {[%emt 0:00:08]} Nbd7 {[%emt 0:02:53]} 9. O-O {[%emt 0:00:28]} Bxc3 {[%emt 0:05:06]} 10. Nxc3 {[%emt 0:00:00]} Qa5 {[%emt 0:00:52]} 11. Bf5 {[%emt 0:03:24]} Qxc5 {[%emt 0:01:46]} 12. Bxd7 {[%emt 0:00:05]} Nxd7 {[%emt 0:00:05]} 13. Qxd5 {[%emt 0:00:07]} Qxd5 {[%emt 0:00:36]} 14. Nxd5 {[%emt 0:00:00]} f6 {[%emt 0:01:08]} 15. Bf4 {[%emt 0:00:07]} Nb6 {[%emt 0:01:00]} 16. Nc7 {[%emt 0:01:31]} Rb8 {[%emt 0:00:02]} 17. Nb5 {[%emt 0:00:02]} Ra8 {[%emt 0:00:01]} 18. Bd6 {[%emt 0:02:10]} Rd8 {[%emt 0:00:23]} 19. Rfd1 {[%emt 0:00:37]} Bf5 {[%emt 0:00:10]} 20. Nd4 {[%emt 0:01:50]} Bg4 {[%emt 0:00:09]} 21. Bc7 {[%emt 0:00:22]} Rd7 {[%emt 0:00:05]} 22. Bxb6 {[%emt 0:00:04]} Bxd1 {[%emt 0:00:06]} 23. Rxd1 {[%emt 0:00:05]} axb6 {[%emt 0:00:02]} 24. a3 {[%emt 0:00:03]} Rad8 {[%emt 0:00:07]} 25. c3 {[%emt 0:00:01]} Kf7 {[%emt 0:00:02]} 26. f3 {[%emt 0:00:02]} g6 {[%emt 0:00:07]} 27. Kf2 {[%emt 0:00:03]} Re8 {[%emt 0:00:06]} 28. Rd2 {[%emt 0:00:18]} h6 {[%emt 0:00:11]} 29. a4 {[%emt 0:00:17]} Ra8 {[%emt 0:00:04]} 30. b3 {[%emt 0:00:02]} Rc8 {[%emt 0:00:04]} 31. Rd3 {[%emt 0:00:08]} f5 {[%emt 0:00:16]} 32. Ke2 {[%emt 0:00:03]} Kf6 {[%emt 0:00:02]} 33. Kd2 {[%emt 0:00:02]} Rcd8 {[%emt 0:00:03]} 34. Re3 {[%emt 0:00:14]} Re7 {[%emt 0:00:04]} 35. Rd3 {[%emt 0:00:04]} Rde8 {[%emt 0:00:03]} 36. h4 {[%emt 0:00:49]} Re1 {[%emt 0:00:04]} 37. c4 {[%emt 0:00:11]} Rg1 {[%emt 0:00:06]} 38. Nb5 {[%emt 0:00:03]} Rxg2+ {[%emt 0:00:03]} 39. Kc3 {[%emt 0:00:02]} Rg3 {[%emt 0:00:10]} 40. Kb4 {[%emt 0:00:06]} g5 {[%emt 0:00:06]} 41. hxg5+ {[%emt 0:00:02]} Kxg5 {[%emt 0:00:04]} 42. Nc7 {[%emt 0:00:02]} Re7 {[%emt 0:00:07]} 43. f4+ {[%emt 0:00:10]} Kg4 {[%emt 0:00:07]} 44. Rxg3+ {[%emt 0:00:26]} Kxg3 {[%emt 0:00:02]} 45. Nd5 {[%emt 0:00:00]} Re6 {[%emt 0:00:03]} 46. Kb5 {[%emt 0:00:04]} h5 {[%emt 0:00:02]} 47. Nxb6 {[%emt 0:00:12]} h4 {[%emt 0:00:02]} 48. c5 {[%emt 0:00:11]} h3 {[%emt 0:00:04]} 49. Nc4 {[%emt 0:00:01]} h2 {[%emt 0:00:04]} 0-1